Cogmind - Beta 16.1 @@@ ROGUE MODE // 2026.02.11 @ 20:00:05 Player: Rudrot Result: Destroyed by S-10 Pest with Light Assault Rifle Performance ------------- Evolutions (0) 0 Regions Visited (2) 400 Robots Destroyed (17) 85 Value Destroyed (361) 361 Prototype IDs (0) 0 Alien Tech Used (0) 0 Bonus (0) 0 TOTAL SCORE: 846 Bonus ------- None Cogmind --------- Core Integrity 0/250 Matter 294/300 Energy 190/200 System Corruption 1% Temperature Cool (48) Movement Rolling (110) Location -10/Subcaves Parts ------- > --- POWER (1) -------- Subdweller Power Source > --- PROPULSION (2) --- Subdweller Monowheel Subdweller Monowheel > --- UTILITY (2) ------ Sensor Array Signal Interpreter > --- WEAPON (2) ------- Subdweller Laser Subdweller Beam Cannon > --- INVENTORY (5) ---- Small Storage Unit Medium Matter Pod (100) Subdweller Laser Battle Rifle Barrage Gun Peak State ------------ > --- POWER ------------ Subdweller Power Source > --- PROPULSION ------- Subdweller Monowheel Subdweller Monowheel > --- UTILITY ---------- Sensor Array Signal Interpreter > --- WEAPON ----------- Subdweller Laser Subdweller Beam Cannon > --- INVENTORY -------- Small Storage Unit Medium Matter Pod Subdweller Laser Battle Rifle Barrage Gun [Rating: 12] Favorites ----------- Power Subdweller Power Source Engine Subdweller Power Source Propulsion Wheel Wheel Wheel Utility Signal Interpreter Device Sensor Array Storage Small Storage Unit Processor Signal Interpreter Weapon Light Assault Rifle Energy Gun Subdweller Laser Energy Cannon Subdweller Beam Cannon Ballistic Gun Light Assault Rifle Build | -11 -10 -10 ------- Run | Yrd Mat Sub Slots Evolved . | . . . Power . | . . . Propulsion . | . . . Utility . | . . . Weapon . | . . . Parts Attached 28 | 8 9 11 Power 6 | 2 2 2 Engine 6 | 2 2 2 Core . | . . . Reactor . | . . . Propulsion 8 | 2 1 5 Treads . | . . . Leg . | . . . Wheel 8 | 2 1 5 Hover . | . . . Flight . | . . . Utility 4 | 1 3 . Device 2 | . 2 . Storage 1 | 1 . . Processor 1 | . 1 . Hackware . | . . . Protection . | . . . Artifact . | . . . Weapon 10 | 3 3 4 Energy Gun 6 | 2 2 2 Energy Cannon 1 | . . 1 Ballistic Gun 3 | 1 1 1 Ballistic Cannon . | . . . Launcher . | . . . Special Weapon . | . . . Impact Weapon . | . . . Slashing Weapon . | . . . Piercing Weapon . | . . . Special Melee Weapon . | . . . Unidentified Prototypes . | . . . Parts Lost 12 | . 4 8 Power 2 | . 1 1 Propulsion 5 | . 1 4 Utility . | . . . Weapon 5 | . 2 3 Highest Loss Streak 4 | . 4 4 To Critical Strikes . | . . . Average Backups 2 | . . 3 Power . | . . . Propulsion . | . . . Utility 1 | . . 2 Weapon . | . . . Tool/Special . | . . . Unused Backups 4 | . . 4 Power . | . . . Propulsion . | . . . Utility 1 | . . 1 Weapon 3 | . . 3 Tool/Special . | . . . Average Slot Usage (%) 82 | . 92 77 Engine 9 | . 13 7 Wheel 22 | . 27 19 Device 12 | . 11 14 Storage 4 | . 11 . Processor 10 | . 3 14 Energy Gun 11 | . 18 7 Energy Cannon 2 | . . 3 Ballistic Gun 8 | . 5 10 Peak Build Rating 12 | 6 7 12 Average Rating 7 | 4 6 7 On Entrance 4 | . 6 7 Avg Prop Armor Cover (%) . | . . . Naked Turns . | . . . Heaviest Build 18 | 14 16 18 Greatest Support 40 | 26 26 40 Greatest Overweight (x) 5 | . . 5 Average Overweight (x) . | . . . Largest Inventory Capacity 8 | 8 8 5 Average Capacity 5 | 6 7 5 Most Carried 5 | 1 4 5 Average Carried 2 | . . 3 Final Capacity 8 | 8 5 5 Final Carried 5 | . 4 5 Class Distribution -------------------- 88% | Mutant 11% | Scavenger-Mutant Dominant Class ---------------- Mutant | -10/Materials Mutant | -10/Subcaves Resources | -11 -10 -10 ----------- Run | Yrd Mat Sub Matter Collected 664 | 237 315 112 Remotely . | . . . Salvage Created 564 | . 403 161 Parts 44 | . 27 17 Haulers Intercepted . | . . . Recyclers Shooed 2 | . 2 . Parts Field Recycled . | . . . Retrieved Matter . | . . . Parts Self-Destructed 7 | . . 7 Prevented . | . . . Parts Restored . | . . . Kills | -11 -10 -10 ------- Run | Yrd Mat Sub Combat Hostiles Destroyed 11 | . 6 5 Guns 8 | . 5 3 Cannons 1 | . . 1 AOE 1 | . 1 . Classes Destroyed 6 | . 5 1 Worker 2 | . 2 . Recycler 3 | . 3 . Operator 1 | . 1 . Swarmer 5 | . 3 2 Grunt 3 | . 3 . Subdweller 3 | . . 3 Best Kill Streak 4 | . 4 2 Combat Bots Only 3 | . 3 2 Max Kills in Single Turn 3 | . 3 1 Gunslinging . | . . . Exploded 1 | . 1 . Melee . | . . . Uniques/NPCs Destroyed . | . . . Combat | -11 -10 -10 -------- Run | Yrd Mat Sub Hostile Shots Fired 86 | . 37 49 Missed 19 | . 6 13 Hits 67 | . 31 36 Projectile 67 | . 31 36 Critical Strikes 1 | . 1 . Damage Taken 1206 | . 445 761 Core 250 | . 71 179 Absorbed by Shields . | . . . Core Remaining (%) 100 | 100 . . Volleys Fired 59 | . 37 22 Largest 2 | . 2 2 Hottest 140 | . 100 140 Shots Fired 106 | . 70 36 Gun 98 | . 70 28 Cannon 8 | . . 8 Launcher . | . . . Special . | . . . Kinetic 28 | . 16 12 Thermal 58 | . 34 24 Explosive . | . . . Electromagnetic 20 | . 20 . Robot Hit Streak 22 | . 9 22 Robot Miss Streak 5 | . 5 4 Penetration Max . | . . . Secondary Targets . | . . . Shots Hit Robots 56 | . 36 20 Core Hits 25 | . 19 6 Critical Kills 1 | . . 1 Critical Parts Destroyed . | . . . Critical Strikes 4 | . 3 1 Burn 3 | . 3 . Meltdown 1 | . . 1 Melee Attacks . | . . . Impact . | . . . Slashing . | . . . Piercing . | . . . Sneak Attacks . | . . . Combat Hostiles . | . . . Follow-up Attacks . | . . . Damage Inflicted 1016 | . 666 350 Guns 725 | . 430 295 Cannons 55 | . . 55 Explosions 236 | . 236 . Melee . | . . . Ramming . | . . . Kinetic 204 | . 69 135 Thermal 676 | . 461 215 Explosive . | . . . Electromagnetic 136 | . 136 . Impact . | . . . Slashing . | . . . Piercing . | . . . Highest Corruption 1 | . 1 1 Average Corruption 1 | . 1 1 Corruption Purged . | . . . Corruption Blocked . | . . . Effects 7 | . 4 3 Message Errors 2 | . . 2 Matter Fused 2 | . 1 1 Energy Discharges 2 | . 2 . Data Loss (minor) 1 | . 1 . Overload Shots . | . . . Overflow Damage 91 | . 91 . Projectiles . | . . . Explosions 91 | . 91 . Melee . | . . . Knockbacks . | . . . Impact . | . . . Kinetic . | . . . Secondary . | . . . Self-Inflicted Damage 25 | . 25 . Shots 1 | . 1 . Rammed . | . . . Targets Rammed . | . . . Kicked . | . . . Crushed . | . . . Highest Temperature 365 | . 365 48 Average Temperature 87 | . 106 16 Received Heat Transfer 312 | . 240 72 Effects 2 | . 2 . Interference 1 | . 1 . Matter Decay 1 | . 1 . Siege Activations . | . . . Martial Activations . | . . . Shielding Activations . | . . . Robots Disrupted . | . . . Combat Hostiles . | . . . Robots Corrupted . | . . . Combat Hostiles . | . . . Parts Fried . | . . . Impact Corruptions . | . . . Robots Melted 1 | . . 1 Combat Hostiles 1 | . . 1 Parts Melted 1 | . 1 . Heat Transferred 1423 | . 1149 274 Parts Sabotaged . | . . . Parts Stolen . | . . . Parts Stripped . | . . . Power Chain Reactions . | . . . Alert | -11 -10 -10 ------- Run | Yrd Mat Sub Maximum Alert Level . | . . . Low Security (%) 100 | 100 100 . Level 1 . | . . . Level 2 . | . . . Level 3 . | . . . Level 4 . | . . . Level 5 . | . . . High Security . | . . . Max Security . | . . . Peak Influence 114 | . 114 . Initial . | . . . Average 47 | . 53 . Influence Increases 364 | . 279 85 Destroy 0b10 Robot/C 160 | . 120 40 Destroy 0b10 Robot/NC 30 | . 30 . Destroy Leader 30 | . 30 . Disable Machine 60 | . 60 . Destroy Structure 9 | . 9 . Lose Combat Pursuer 75 | . 30 45 Influence Decreases 294 | . 274 20 Entered New Map 3 | . . 3 Time Decay 251 | . 234 17 Lost Part 40 | . 40 . Squads Dispatched 1 | . 1 . Investigation . | . . . Extermination . | . . . Reinforcement 1 | . 1 . Assault . | . . . Garrison . | . . . Intercept . | . . . Searches Triggered . | . . . Construction Impeded . | . . . Haulers Reinforced . | . . . Active Scanning Responses . | . . . Cargo Convoy Interrupts . | . . . Stealth | -11 -10 -10 --------- Run | Yrd Mat Sub Distress Signals . | . . . Communications Jammed . | . . . Distress Signals . | . . . Times Spotted 26 | . 14 12 Peak Tracking Total 6 | . 3 6 Tactical Retreats 6 | . 4 2 ECM-based Alert Blocks 4 | . 4 . Traps | -11 -10 -10 ------- Run | Yrd Mat Sub Traps Triggered 5 | . . 5 Indirectly . | . . . Trap Hack Attempts . | . . . Triggered . | . . . Disarmed . | . . . Reprogrammed . | . . . Reused . | . . . Traps Extracted . | . . . Installed . | . . . Triggered . | . . . Machines | -11 -10 -10 ---------- Run | Yrd Mat Sub Machines Disabled 4 | . 4 . Max in Single Turn 4 | . 4 . Machines Repaired . | . . . Machines Dismantled . | . . . Machines Sabotaged . | . . . Overloaded Fab Kills . | . . . Hacking | -11 -10 -10 --------- Run | Yrd Mat Sub Machines Accessed . | . . . Terminals . | . . . Fabricators . | . . . Repair Stations . | . . . Recycling Units . | . . . Scanalyzers . | . . . Garrison Access . | . . . Total Hacks . | . . . Successful . | . . . Failed . | . . . Catastrophic . | . . . Database Lockouts . | . . . Manual . | . . . Terminals . | . . . Fabricators . | . . . Repair Stations . | . . . Recycling Units . | . . . Scanalyzers . | . . . Garrison Access . | . . . Terminal Hacks . | . . . Fabricator Hacks . | . . . Repair Station Hacks . | . . . Recycling Unit Hacks . | . . . Scanalyzer . | . . . Garrison Access Hacks . | . . . Unauthorized Hacks . | . . . Terminals . | . . . Fabricators . | . . . Repair Stations . | . . . Recycling Units . | . . . Scanalyzers . | . . . Garrison Access . | . . . Data Cores Recovered . | . . . Used . | . . . Hacking Detections . | . . . Full Trace Events . | . . . Feedback Events . | . . . Feedback Blocked . | . . . Robot Schematics Acquired . | . . . Robots Built . | . . . Authchips . | . . . Time . | . . . Total Robot Build Rating . | . . . Part Schematics Acquired . | . . . Parts Built . | . . . Authchips . | . . . Time . | . . . Total Part Build Rating . | . . . Part Studies Acquired . | . . . Parts Repaired . | . . . Time . | . . . Parts Recycled . | . . . Recycled Matter . | . . . Retrieved Matter . | . . . Retrieved Components . | . . . Parts Scanalyzed . | . . . Part Schematics Acquired . | . . . Parts Damaged . | . . . Bothacking | -11 -10 -10 ------------ Run | Yrd Mat Sub Used RIF Installer . | . . . Robots Hacked . | . . . Non-combat . | . . . Combat . | . . . Robot Hacks Applied . | . . . Relay Couplers Released . | . . . Fabnet Peak Effective % . | . . . Robots Rewired . | . . . Allies Hacked . | . . . Hacks Repelled . | . . . Allies | -11 -10 -10 -------- Run | Yrd Mat Sub Total Allies . | . . . Largest Group . | . . . Highest-Rated Group . | . . . Highest-Rated Ally . | . . . Total Orders . | . . . Ally Attacks . | . . . Total Damage . | . . . Kills . | . . . Allies Corrupted . | . . . Allies Melted . | . . . Intel | -11 -10 -10 ------- Run | Yrd Mat Sub Active Infowar (turns) 1415 | . 405 1010 Sensors 1112 | . 102 1010 ECM 303 | . 303 . Robot Analysis Total . | . . . Derelict Logs Recovered . | . . . Drone Launches . | . . . Drone Recoveries . | . . . Exploration | -11 -10 -10 ------------- Run | Yrd Mat Sub Turns Passed 1630 | 65 555 1010 Spaces Moved 1495 | 58 480 957 Core 3 | 1 . 2 Treads . | . . . Legs . | . . . Wheels 1492 | 57 480 955 Hover . | . . . Flight . | . . . Fastest Speed 50 | 50 80 50 Average Speed 89 | 88 83 92 Slowest Speed 300 | 90 90 300 Overloaded Moves . | . . . Propulsion Burnouts . | . . . Robots Hopped . | . . . Potential Cave-ins . | . . . Cave-ins Triggered . | . . . Exploration Rate (%) 34 | 3 51 48 Regions Visited 2 Branch Regions 1 Pre-discovered Areas 1 | . . 1 Known Exits Taken 1 | . 1 . Unknown Exits Taken 1 | 1 . . Scrap Searched . | . . . Spaces Dug . | . . . Terrain Destroyed 14 | . 13 1 Melee . | . . . Projectile 1 | . . 1 AOE 13 | . 13 . Terrain Rammed . | . . . Walls Destroyed . | . . . Machines Disabled . | . . . Actions | -11 -10 -10 --------- Run | Yrd Mat Sub Total 1671 | 68 568 1035 Wait 70 | . 33 37 Move 1493 | 57 479 957 Hop . | . . . Pick Up 9 | . 5 4 Fast Attach 18 | 7 5 6 Attach 5 | . 2 3 Detach 4 | 1 2 1 Swap 5 | 1 2 2 Drop 8 | 2 3 3 Fire 59 | . 37 22 Melee . | . . . Ram . | . . . Kick . | . . . Crush . | . . . Escape Stasis . | . . . Rewire . | . . . Trap . | . . . Miscellaneous . | . . . Route ------- -11/Scrapyard -10/Materials (discovered 3 exits: [*Mat] / [*Min] / *Sub) -10/Subcaves (discovered 2 exits: *Mat x2) History --------- Turn | Location | Event 22 | -11/Scrapyard | Discovered new exit (range 15) 66 | -11/Scrapyard | Entered Materials 296 | -10/Materials | Discovered new exit (range 16) 302 | -10/Materials | Lost 4 parts (1p1n2w) 307 | -10/Materials | Build established: Mutant 501 | -10/Materials | Discovered new exit (range 16) 613 | -10/Materials | Discovered new exit (range 11) 621 | -10/Materials | Identified exit to Subcaves 621 | -10/Materials | Entered Subcaves 687 | -10/Subcaves | Lost 4 parts (1p2n1w) 696 | -10/Subcaves | Learned location of Zion (-6) 696 | -10/Subcaves | Met a Zionite searching for "candidates" 1093 | -10/Subcaves | A swath of the cavern ceiling suddenly collapsed 1157 | -10/Subcaves | Discovered new exit (range 12) 1167 | -10/Subcaves | Identified exit to Materials 1202 | -10/Subcaves | Discovered exit to Materials (range 14) 1250 | -10/Subcaves | Shifting Twisted Machinery released Sub. Beam Cannon 1371 | -10/Subcaves | Core integrity fell below 50% 1515 | -10/Subcaves | A swath of the cavern ceiling suddenly collapsed 1563 | -10/Subcaves | Shifting Twisted Machinery released Sub. Laser 1610 | -10/Subcaves | Shifting Twisted Machinery released Shrapnel Trap 1623 | -10/Subcaves | Core integrity fell below 20% 1631 | -10/Subcaves | Destroyed by S-10 Pest with Light Assault Rifle Last Messages --------------- 01405_ B8-H29(O) collects matter. 01408_ Acquired 5 matter. 01416_ Dropped Broken Sub. Monowheel. 01416_ Acquired Barrage Gun. 01432_ Acquired Sub. Monowheel. 01457_ Acquired 7 matter. 01463_ Acquired 8 matter. A swath of the cavern ceiling suddenly collapses. Sub. Laser falls loose from the Twisted Machinery. 01568_ WYXVHK3F X|WC OGYRNB|&CT:E KIE/AJ 6N,PFA 01591_ Dropped Sub. Laser. 01594_ Acquired Sub. Laser. 01605_ A thin wall crumbles away, revealing a door. Shrapnel Trap falls loose from the Twisted Machinery. 01611_ System corrupted: Matter fused (-6). 01626_ S-10 Pest destroyed. Map ----- +----------------------------------------------------+ | ?????????????????????????????????????????????????? | | ?????????????????????????????????????????????????? | | ?????????????????????????????????????????????????? | | ?????????????????????????????????????????????????? | | ?????????????????????????????????????????????????? | | ?????????????????????????????????????????????????? | | ?????????????????????????????????????????????????? | | ?????????????????????????????????????????????????? | | ?????????????????????????????????????????????????? | | ?????????????????????????????????????????????????? | | ?????????????????????????????????????????????????? | | ?????????????????????????????????????????????????? | | ?????????????????????????????????????????????????? | | ?????????????????????????????????????????????????? | | ?????????????????????????????????????????????????? | | ?????????????????????????????????????????????????? | | ?????????????????????????????????????????????????? | | ?????????????????????##??????????????????????????? | | ????????????????????##"##????????????????????????? | | ????????????????????#"" ##???????????????????????? | | ?????????? #######" ##??????????????????????? | | ?????????" " #??????????????????????? | | ?????????? &"*s ##?????????????????????? | | ?????????? ""s*% "####??????????????????? | | ????????????? ?######;= "" #??????????????????? | | ?????????????????????# @""" #??????????????????? | | ?????????????????????# ""##?????#####????????? | | ?????????????????????# ##?????## ##???????? | | ?????????????????????# ######??# #???????? | | ?????????????????????#### #### "##?# ##???????? | | ???????????????????????# #?# ""#### #????????? | | ???????????????????????## #?# "" ### #????????? | | ???????????????????????# #?# " ### ##???????? | | ???????????????????????# ##### ## ##??????? | | ???????????????????????## # # #??????? | | ???????????????????????# [ #??????? | | ??????????????????????## ###??????? | | ??????????????????????# #### ""##??????? | | ?????????????????????" #?# #""""#??????? | | ?????????????????????## ###"" ###"""#??? ? | | ??????????????????????# "###" " #? "###??# ? | | ??????????????????????# ""#### " ### "" #? #? | | ??????????????????????# ## #?## "" #?# #"### #?? | | ??????????????????????# "#"#??##" ## ### #??? | | ??????????????????????#"" "#???### #""#" #??? | | ??????????????????????#""""#?????# #"" ????? | | ??????????????????????# """#####?# #"## ?????? | | ?????????????????????## """ "##### "# ???????? | | ?????????????????????# ### #####????????? | | ?????????????????????## ###"" "##????????? | +----------------------------------------------------+ Best States ------------- Heat Dissipation 25 Energy Generation 15 Energy Capacity 250 Matter Stores 300 Matter Capacity 300 Sight Range 16 Robot Scan Range 14 Terrain Scan Density 10 ECM Strength 1 Evasion (%) 44 Item Schematics ----------------- None Robot Schematics ------------------ None Fabricated ------------ Nothing Repaired ---------- Nothing Studied --------- None Alien Tech Used ----------------- None Achievements -------------- None Challenges ------------ None Game ------ Seed BackupTrackerSystem Manual? 0 Play Time 00:14:24 Cumulative 29.7 hours Start 2026.02.11 @ 19:45:18 End 2026.02.11 @ 20:00:05 Sessions 1 Manual Loads 0 Difficulty Rogue Special Mode None Game No. 30 Rogue 30 Adventurer 0 Explorer 0 Win Type - Total 0 Types 0/0/0/0/0/0/0/0/0/0 Lore% 16 Gallery% 14 Achievement% 13 Wizard Run 0 Options --------- Layout 1 ASCII 0 Keyboard 1 Movement Numpad Keybinds 0 Fullscreen 2 Font 24/Cog Map View 50x35 Zoom Use 0% Tactical HUD 1 Map Filters NONE Filters NONE Steam 1 RUN: f4c4b809-ae23-4607-8fb2-0ef23bb92da5